[Event "*** Titled Tuesday Blitz"]
[Site "Chess.com"]
[Date "2020.11.03"]
[Round "4"]
[White "Tomekas1"]
[Black "novocane"]
[Result "1-0"]
[WhiteElo "2459"]
[BlackElo "2297"]
[TimeControl "180+1"]
[EndTime "10:42:31 PST"]
[Termination "Tomekas1 won on time"]

1. e4 {[%clk 0:03:00.9]} 1... c5 {[%clk 0:02:59.2]} 2. Nf3 {[%clk 0:03:01.2]}
2... Nc6 {[%clk 0:02:59.4]} 3. d4 {[%clk 0:03:01.8]} 3... cxd4 {[%clk
0:02:59.8]} 4. Nxd4 {[%clk 0:03:02.7]} 4... e5 {[%clk 0:03:00.2]} 5. Nb5 {[%clk
0:03:02.2]} 5... d6 {[%clk 0:03:00.3]} 6. N1c3 {[%clk 0:03:02.9]} 6... a6 {[%clk
0:03:00.7]} 7. Na3 {[%clk 0:03:03.6]} 7... Be7 {[%clk 0:02:57.9]} 8. Nd5 {[%clk
0:03:01.9]} 8... Nf6 {[%clk 0:02:57.6]} 9. Nxe7 {[%clk 0:02:50.7]} 9... Qxe7
{[%clk 0:02:56.9]} 10. Bg5 {[%clk 0:02:49.4]} 10... Be6 {[%clk 0:02:53.5]} 11.
Nc4 {[%clk 0:02:35.1]} 11... Rd8 {[%clk 0:02:29.8]} 12. Nb6 {[%clk 0:02:13.2]}
12... h6 {[%clk 0:02:23.7]} 13. Bxf6 {[%clk 0:02:08.4]} 13... Qxf6 {[%clk
0:02:19.5]} 14. Bc4 {[%clk 0:01:51.6]} 14... O-O {[%clk 0:02:09.9]} 15. O-O
{[%clk 0:01:49.3]} 15... Qg6 {[%clk 0:02:04.9]} 16. Bd5 {[%clk 0:01:46]} 16...
Kh8 {[%clk 0:01:55.7]} 17. c3 {[%clk 0:01:43.4]} 17... f5 {[%clk 0:01:55.4]} 18.
Bxe6 {[%clk 0:01:39.6]} 18... Qxe6 {[%clk 0:01:54.9]} 19. Qd5 {[%clk 0:01:37.6]}
19... Qxd5 {[%clk 0:01:50.5]} 20. exd5 {[%clk 0:01:37.9]} 20... Ne7 {[%clk
0:01:44]} 21. Rac1 {[%clk 0:01:34.2]} 21... Nc8 {[%clk 0:01:38.9]} 22. Nc4
{[%clk 0:01:29.1]} 22... g5 {[%clk 0:01:34.2]} 23. b4 {[%clk 0:01:26.5]} 23...
Kg7 {[%clk 0:01:33.2]} 24. Na5 {[%clk 0:01:26.4]} 24... Rf7 {[%clk 0:01:29.7]}
25. c4 {[%clk 0:01:26.2]} 25... Rfd7 {[%clk 0:01:17.7]} 26. a4 {[%clk
0:01:17.9]} 26... Nb6 {[%clk 0:01:04.3]} 27. c5 {[%clk 0:01:02.4]} 27... dxc5
{[%clk 0:00:58.5]} 28. bxc5 {[%clk 0:01:03.3]} 28... Nxd5 {[%clk 0:00:58.6]} 29.
c6 {[%clk 0:01:01.9]} 29... bxc6 {[%clk 0:00:51.3]} 30. Rxc6 {[%clk 0:00:58.5]}
30... Nb4 {[%clk 0:00:47.1]} 31. Rb6 {[%clk 0:00:56.8]} 31... Rd4 {[%clk
0:00:38.9]} 32. g3 {[%clk 0:00:50.7]} 32... f4 {[%clk 0:00:35.7]} 33. Rb1 {[%clk
0:00:35.2]} 33... f3 {[%clk 0:00:27]} 34. h4 {[%clk 0:00:35.4]} 34... Rd1+
{[%clk 0:00:22.1]} 35. Rxd1 {[%clk 0:00:33.5]} 35... Rxd1+ {[%clk 0:00:22]} 36.
Kh2 {[%clk 0:00:34.2]} 36... Nd3 {[%clk 0:00:22.1]} 37. hxg5 {[%clk 0:00:31.3]}
37... hxg5 {[%clk 0:00:15.1]} 38. g4 {[%clk 0:00:31.9]} 38... Nxf2 {[%clk
0:00:10.6]} 39. Kg3 {[%clk 0:00:32.4]} 39... Ne4+ {[%clk 0:00:07.2]} 40. Kxf3
{[%clk 0:00:32.9]} 40... Nc5 {[%clk 0:00:07.2]} 41. Nc4 {[%clk 0:00:29.2]} 41...
e4+ {[%clk 0:00:07.2]} 42. Ke3 {[%clk 0:00:29]} 42... Rd3+ {[%clk 0:00:06.8]}
43. Ke2 {[%clk 0:00:29.5]} 43... Nxa4 {[%clk 0:00:06.9]} 44. Rxa6 {[%clk
0:00:29.2]} 44... Nc3+ {[%clk 0:00:07.1]} 45. Ke1 {[%clk 0:00:28]} 45... Rd1+
{[%clk 0:00:05.6]} 46. Kf2 {[%clk 0:00:28]} 46... Rd4 {[%clk 0:00:04.6]} 47. Ne5
{[%clk 0:00:27.3]} 47... Rd2+ {[%clk 0:00:03.5]} 48. Ke3 {[%clk 0:00:27.4]}
48... Re2+ {[%clk 0:00:02.5]} 49. Kd4 {[%clk 0:00:27.2]} 49... Nb5+ {[%clk
0:00:02.3]} 50. Kc4 {[%clk 0:00:27.2]} 1-0

[Event "*** Titled Tuesday Blitz"]
[Site "Chess.com"]
[Date "2020.11.03"]
[Round "4"]
[White "Rap_woyska"]
[Black "DenLaz"]
[Result "1-0"]
[WhiteElo "2525"]
[BlackElo "2722"]
[TimeControl "180+1"]
[EndTime "10:42:36 PST"]
[Termination "Rap_woyska won by resignation"]

1. c4 {[%clk 0:03:00.9]} 1... c6 {[%clk 0:02:56.1]} 2. e4 {[%clk 0:03:00.7]}
2... d5 {[%clk 0:02:57]} 3. exd5 {[%clk 0:03:01.6]} 3... cxd5 {[%clk 0:02:57.9]}
4. d4 {[%clk 0:03:01.9]} 4... Nf6 {[%clk 0:02:58.1]} 5. Nc3 {[%clk 0:03:02.5]}
5... e6 {[%clk 0:02:58.7]} 6. Nf3 {[%clk 0:03:02.8]} 6... Bb4 {[%clk 0:02:53.7]}
7. cxd5 {[%clk 0:03:02.6]} 7... Nxd5 {[%clk 0:02:53]} 8. Bd2 {[%clk 0:03:02.9]}
8... O-O {[%clk 0:02:53.7]} 9. Bd3 {[%clk 0:03:02.9]} 9... Nc6 {[%clk
0:02:53.3]} 10. O-O {[%clk 0:03:02.5]} 10... Be7 {[%clk 0:02:53.9]} 11. Re1
{[%clk 0:03:01.1]} 11... Ndb4 {[%clk 0:02:44]} 12. Be4 {[%clk 0:02:21]} 12...
Nxd4 {[%clk 0:02:41.8]} 13. Be3 {[%clk 0:01:35.7]} 13... Ndc6 {[%clk 0:02:26.8]}
14. a3 {[%clk 0:01:29.6]} 14... Na6 {[%clk 0:02:25.4]} 15. b4 {[%clk 0:01:15.5]}
15... Nc7 {[%clk 0:02:14.7]} 16. Qc2 {[%clk 0:01:09.5]} 16... f5 {[%clk
0:02:11]} 17. Rad1 {[%clk 0:01:06]} 17... Qe8 {[%clk 0:02:08.6]} 18. Bd3 {[%clk
0:01:06.4]} 18... Bf6 {[%clk 0:02:06.3]} 19. Bc4 {[%clk 0:00:59.8]} 19... Rf7
{[%clk 0:01:34.3]} 20. Ne2 {[%clk 0:00:42.7]} 20... Nd5 {[%clk 0:01:26.7]} 21.
Bg5 {[%clk 0:00:31.5]} 21... Nb6 {[%clk 0:01:16.1]} 22. Bb3 {[%clk 0:00:31.2]}
22... Bd7 {[%clk 0:01:13.1]} 23. Nf4 {[%clk 0:00:25]} 23... Nd8 {[%clk
0:00:55.1]} 24. Qa2 {[%clk 0:00:24.2]} 24... h6 {[%clk 0:00:46.5]} 25. Bxf6
{[%clk 0:00:24]} 25... Rxf6 {[%clk 0:00:44.7]} 26. Rd6 {[%clk 0:00:19.7]} 26...
Nc8 {[%clk 0:00:38.2]} 27. Rd2 {[%clk 0:00:19.4]} 27... g5 {[%clk 0:00:30.5]}
28. Nd5 {[%clk 0:00:19.4]} 28... Rf7 {[%clk 0:00:21.9]} 29. Nc7 {[%clk
0:00:19.4]} 29... Qe7 {[%clk 0:00:21.8]} 30. Nxa8 {[%clk 0:00:18.5]} 30... Nc6
{[%clk 0:00:18.7]} 31. Nc7 {[%clk 0:00:17.4]} 31... Kg7 {[%clk 0:00:16.5]} 32.
Nxe6+ {[%clk 0:00:16.5]} 32... Bxe6 {[%clk 0:00:15.6]} 33. Rxe6 {[%clk 0:00:17]}
33... Qc7 {[%clk 0:00:15]} 34. Rde2 {[%clk 0:00:15.5]} 34... Rd7 {[%clk
0:00:15.4]} 35. Ne5 {[%clk 0:00:13.6]} 35... Nxe5 {[%clk 0:00:14.8]} 36. R6xe5
{[%clk 0:00:14.5]} 36... Nd6 {[%clk 0:00:13.4]} 37. h3 {[%clk 0:00:13.4]} 37...
Ne4 {[%clk 0:00:13.6]} 38. Qb2 {[%clk 0:00:10]} 38... Kg6 {[%clk 0:00:12.1]} 39.
R5xe4 {[%clk 0:00:09.5]} 39... fxe4 {[%clk 0:00:11.9]} 40. Re1 {[%clk
0:00:09.4]} 40... Rd3 {[%clk 0:00:09.4]} 41. Bc2 {[%clk 0:00:08.9]} 41... Rd2
{[%clk 0:00:09.4]} 42. Bxe4+ {[%clk 0:00:08.9]} 42... Kh5 {[%clk 0:00:09]} 43.
Qxd2 {[%clk 0:00:09.2]} 43... Qc4 {[%clk 0:00:09.9]} 44. Qe2+ {[%clk 0:00:09.2]}
44... Qxe2 {[%clk 0:00:09.4]} 45. Rxe2 {[%clk 0:00:10.1]} 45... g4 {[%clk
0:00:10]} 46. Bf5 {[%clk 0:00:09.8]} 46... g3 {[%clk 0:00:10.3]} 47. fxg3 {[%clk
0:00:09.8]} 47... Kg5 {[%clk 0:00:11.2]} 48. g4 {[%clk 0:00:10.5]} 48... h5
{[%clk 0:00:12.1]} 49. Re6 {[%clk 0:00:11]} 49... h4 {[%clk 0:00:13]} 50. Kf2
{[%clk 0:00:11]} 50... Kf4 {[%clk 0:00:13.9]} 51. Re4+ {[%clk 0:00:10.1]} 51...
Kg5 {[%clk 0:00:14.1]} 52. Kf3 {[%clk 0:00:11]} 52... b5 {[%clk 0:00:15]} 53.
Re6 {[%clk 0:00:11.9]} 1-0

[Event "*** Titled Tuesday Blitz"]
[Site "Chess.com"]
[Date "2020.11.03"]
[Round "4"]
[White "Artyom_ChessMate"]
[Black "saraswathii"]
[Result "0-1"]
[WhiteElo "2567"]
[BlackElo "2386"]
[TimeControl "180+1"]
[EndTime "10:42:38 PST"]
[Termination "saraswathii won on time"]

1. e4 {[%clk 0:03:00.9]} 1... c5 {[%clk 0:02:54.7]} 2. Nc3 {[%clk 0:03:00.6]}
2... e6 {[%clk 0:02:41]} 3. Nge2 {[%clk 0:02:59.6]} 3... Nc6 {[%clk 0:02:32.2]}
4. g3 {[%clk 0:02:59.1]} 4... d5 {[%clk 0:02:27.8]} 5. exd5 {[%clk 0:03:00]}
5... exd5 {[%clk 0:02:25.2]} 6. d4 {[%clk 0:03:00.6]} 6... Nf6 {[%clk
0:02:16.9]} 7. Bg2 {[%clk 0:02:56.5]} 7... Be6 {[%clk 0:02:06.4]} 8. O-O {[%clk
0:02:55.8]} 8... Be7 {[%clk 0:01:55]} 9. Bg5 {[%clk 0:02:55.2]} 9... O-O {[%clk
0:01:51.3]} 10. dxc5 {[%clk 0:02:55]} 10... Bxc5 {[%clk 0:01:47.7]} 11. Nf4
{[%clk 0:02:53.2]} 11... d4 {[%clk 0:01:35.8]} 12. Ne4 {[%clk 0:02:51.8]} 12...
Be7 {[%clk 0:01:25.2]} 13. Re1 {[%clk 0:02:27.2]} 13... Nxe4 {[%clk 0:01:11.3]}
14. Bxe7 {[%clk 0:02:28.1]} 14... Nxf2 {[%clk 0:00:53.3]} 15. Bxd8 {[%clk
0:02:14.3]} 15... Nxd1 {[%clk 0:00:50.7]} 16. Raxd1 {[%clk 0:02:15.2]} 16...
Raxd8 {[%clk 0:00:44.1]} 17. Nxe6 {[%clk 0:02:13.7]} 17... fxe6 {[%clk
0:00:41.4]} 18. Rxe6 {[%clk 0:02:13.5]} 18... Nb4 {[%clk 0:00:40.2]} 19. Rd2
{[%clk 0:02:06.9]} 19... Nxa2 {[%clk 0:00:36.1]} 20. Re7 {[%clk 0:02:05.5]}
20... Rf7 {[%clk 0:00:29.3]} 21. Rxb7 {[%clk 0:01:55.6]} 21... Rxb7 {[%clk
0:00:25.7]} 22. Bxb7 {[%clk 0:01:56.5]} 22... Kf7 {[%clk 0:00:21]} 23. Kf2
{[%clk 0:01:47.7]} 23... Ke7 {[%clk 0:00:18.2]} 24. Be4 {[%clk 0:01:44.7]} 24...
g6 {[%clk 0:00:17.2]} 25. h4 {[%clk 0:01:44.3]} 25... Nb4 {[%clk 0:00:17.1]} 26.
c3 {[%clk 0:01:34.5]} 26... dxc3 {[%clk 0:00:16.5]} 27. Rxd8 {[%clk 0:01:35.4]}
27... Kxd8 {[%clk 0:00:13.4]} 28. bxc3 {[%clk 0:01:36.3]} 28... Na2 {[%clk
0:00:12.8]} 29. c4 {[%clk 0:01:35.7]} 29... Ke7 {[%clk 0:00:12.7]} 30. Ke3
{[%clk 0:01:34.3]} 30... Nc3 {[%clk 0:00:10.9]} 31. Bc2 {[%clk 0:01:33.1]} 31...
Kd6 {[%clk 0:00:10.4]} 32. g4 {[%clk 0:01:28]} 32... Kc5 {[%clk 0:00:09.5]} 33.
h5 {[%clk 0:01:28.4]} 33... gxh5 {[%clk 0:00:08.6]} 34. g5 {[%clk 0:01:28.7]}
34... Kxc4 {[%clk 0:00:07.4]} 35. Bxh7 {[%clk 0:01:28.7]} 35... h4 {[%clk
0:00:07.5]} 36. Kf3 {[%clk 0:01:18.6]} 36... Kd5 {[%clk 0:00:03.9]} 37. g6
{[%clk 0:01:13.9]} 37... Ne4 {[%clk 0:00:03.7]} 38. Kf4 {[%clk 0:00:42.4]} 38...
h3 {[%clk 0:00:02.7]} 39. g7 {[%clk 0:00:18]} 39... Nf6 {[%clk 0:00:02.6]} 40.
Be4+ {[%clk 0:00:18]} 40... Kd4 {[%clk 0:00:02.4]} 41. Kf5 {[%clk 0:00:16.5]}
41... Ng8 {[%clk 0:00:01.4]} 42. Bf3 {[%clk 0:00:01.6]} 42... h2 {[%clk
0:00:02.3]} 43. Kg4 {[%clk 0:00:01.3]} 43... a5 {[%clk 0:00:02.6]} 44. Kg3
{[%clk 0:00:01.8]} 44... Ke3 {[%clk 0:00:03.1]} 45. Bd1 {[%clk 0:00:02]} 45...
h1=Q {[%clk 0:00:03.1]} 46. Bf3 {[%clk 0:00:01.8]} 46... Qh6 {[%clk 0:00:03.7]}
0-1

[Event "*** Titled Tuesday Blitz"]
[Site "Chess.com"]
[Date "2020.11.03"]
[Round "4"]
[White "Slovak_fighter2000"]
[Black "anon569"]
[Result "0-1"]
[WhiteElo "2494"]
[BlackElo "2263"]
[TimeControl "180+1"]
[EndTime "10:42:38 PST"]
[Termination "anon569 won on time"]

1. d4 {[%clk 0:03:00.9]} 1... Nf6 {[%clk 0:02:58.5]} 2. c4 {[%clk 0:03:00.1]}
2... e6 {[%clk 0:02:57.8]} 3. Nf3 {[%clk 0:03:00.3]} 3... Bb4+ {[%clk
0:02:57.3]} 4. Bd2 {[%clk 0:02:59.5]} 4... c5 {[%clk 0:02:56.8]} 5. g3 {[%clk
0:02:50.8]} 5... Nc6 {[%clk 0:02:55.2]} 6. Bxb4 {[%clk 0:02:48.2]} 6... cxb4
{[%clk 0:02:53.9]} 7. Bg2 {[%clk 0:02:47.7]} 7... O-O {[%clk 0:02:51.1]} 8. O-O
{[%clk 0:02:47.6]} 8... d6 {[%clk 0:02:48.3]} 9. a3 {[%clk 0:02:46.8]} 9... bxa3
{[%clk 0:02:41.6]} 10. Nxa3 {[%clk 0:02:47.7]} 10... e5 {[%clk 0:02:41.5]} 11.
e3 {[%clk 0:02:40.3]} 11... Bg4 {[%clk 0:02:25.1]} 12. h3 {[%clk 0:02:33.4]}
12... Bf5 {[%clk 0:02:22.5]} 13. Re1 {[%clk 0:02:20.3]} 13... Qc8 {[%clk
0:02:16.2]} 14. Kh2 {[%clk 0:02:19.3]} 14... Rd8 {[%clk 0:02:12.2]} 15. Rc1
{[%clk 0:02:12.6]} 15... h6 {[%clk 0:01:54.3]} 16. Nb5 {[%clk 0:02:10]} 16... a6
{[%clk 0:01:50.8]} 17. Nc3 {[%clk 0:02:09.4]} 17... Nb4 {[%clk 0:01:40.3]} 18.
Bf1 {[%clk 0:01:56.5]} 18... Ne4 {[%clk 0:01:32.2]} 19. Nxe4 {[%clk 0:01:47.3]}
19... Bxe4 {[%clk 0:01:31.9]} 20. Nd2 {[%clk 0:01:46.7]} 20... Bh7 {[%clk
0:01:30.1]} 21. Qb3 {[%clk 0:01:45.6]} 21... a5 {[%clk 0:01:25.8]} 22. c5 {[%clk
0:01:41.9]} 22... Qf5 {[%clk 0:01:24.5]} 23. Kg1 {[%clk 0:01:27.6]} 23... exd4
{[%clk 0:01:19.7]} 24. exd4 {[%clk 0:01:28.5]} 24... dxc5 {[%clk 0:01:19.7]} 25.
Rxc5 {[%clk 0:01:25.9]} 25... Qf6 {[%clk 0:01:19.7]} 26. Rce5 {[%clk 0:01:18.4]}
26... Nc2 {[%clk 0:01:13.2]} 27. Nf3 {[%clk 0:01:06.8]} 27... Nxe1 {[%clk
0:01:11.6]} 28. Rxe1 {[%clk 0:01:07.7]} 28... b6 {[%clk 0:01:04.3]} 29. Bg2
{[%clk 0:01:02.6]} 29... Rac8 {[%clk 0:01:02.7]} 30. Qb5 {[%clk 0:00:56.5]}
30... Bf5 {[%clk 0:00:54.9]} 31. Kh2 {[%clk 0:00:45.8]} 31... Rc2 {[%clk
0:00:23]} 32. Re2 {[%clk 0:00:32.9]} 32... Rxe2 {[%clk 0:00:17.4]} 33. Qxe2
{[%clk 0:00:33.8]} 33... Qe6 {[%clk 0:00:17.9]} 34. Qb5 {[%clk 0:00:25.9]} 34...
Be4 {[%clk 0:00:17.9]} 35. Qa6 {[%clk 0:00:02.8]} 35... Qf5 {[%clk 0:00:16.9]}
36. Nh4 {[%clk 0:00:01.9]} 36... Qd5 {[%clk 0:00:15.8]} 37. Bxe4 {[%clk
0:00:02]} 37... Qxe4 {[%clk 0:00:15.9]} 38. Qxb6 {[%clk 0:00:02.4]} 38... Qxd4
{[%clk 0:00:16.1]} 39. Qxd4 {[%clk 0:00:01]} 39... Rxd4 {[%clk 0:00:16.6]} 40.
Nf5 {[%clk 0:00:01.7]} 40... Rb4 {[%clk 0:00:16.5]} 41. Ne3 {[%clk 0:00:01.4]}
41... Rxb2 {[%clk 0:00:16.4]} 42. Nc4 {[%clk 0:00:02]} 42... Rxf2+ {[%clk
0:00:16.4]} 43. Kg1 {[%clk 0:00:02.5]} 43... Ra2 {[%clk 0:00:17]} 44. Nd6 {[%clk
0:00:02.2]} 44... a4 {[%clk 0:00:17.4]} 45. Nc8 {[%clk 0:00:02.6]} 45... a3
{[%clk 0:00:17.6]} 46. Ne7+ {[%clk 0:00:02.1]} 46... Kf8 {[%clk 0:00:18.1]} 47.
Nc8 {[%clk 0:00:01.6]} 47... Rc2 {[%clk 0:00:17.8]} 0-1

[Event "*** Titled Tuesday Blitz"]
[Site "Chess.com"]
[Date "2020.11.03"]
[Round "4"]
[White "ChessLover0108"]
[Black "lolo9292"]
[Result "0-1"]
[WhiteElo "2830"]
[BlackElo "2471"]
[TimeControl "180+1"]
[EndTime "10:42:39 PST"]
[Termination "lolo9292 won by resignation"]

1. Nf3 {[%clk 0:03:00.9]} 1... Nf6 {[%clk 0:03:00.2]} 2. d4 {[%clk 0:03:00.9]}
2... g6 {[%clk 0:03:01.1]} 3. c4 {[%clk 0:03:01.4]} 3... Bg7 {[%clk 0:03:01.7]}
4. Nc3 {[%clk 0:03:01.8]} 4... d6 {[%clk 0:03:02.2]} 5. e4 {[%clk 0:03:02.2]}
5... O-O {[%clk 0:03:02.6]} 6. Be2 {[%clk 0:03:02.6]} 6... Na6 {[%clk
0:03:02.9]} 7. O-O {[%clk 0:03:00.8]} 7... e5 {[%clk 0:03:03.3]} 8. Be3 {[%clk
0:03:00.5]} 8... c6 {[%clk 0:03:03.3]} 9. d5 {[%clk 0:02:59.8]} 9... Ng4 {[%clk
0:03:03.3]} 10. Bg5 {[%clk 0:02:58.9]} 10... f6 {[%clk 0:03:03.9]} 11. Bh4
{[%clk 0:02:56.8]} 11... c5 {[%clk 0:03:04.8]} 12. Nd2 {[%clk 0:02:53.6]} 12...
Nh6 {[%clk 0:03:02.2]} 13. a3 {[%clk 0:02:49.2]} 13... g5 {[%clk 0:02:58.8]} 14.
Bg3 {[%clk 0:02:48.9]} 14... f5 {[%clk 0:02:59.3]} 15. exf5 {[%clk 0:02:49.8]}
15... Bxf5 {[%clk 0:02:57.7]} 16. Nde4 {[%clk 0:02:46.6]} 16... Bg6 {[%clk
0:02:57.4]} 17. Bh5 {[%clk 0:02:42.9]} 17... Bf5 {[%clk 0:02:42.9]} 18. h3
{[%clk 0:02:38.3]} 18... Bf6 {[%clk 0:02:23.9]} 19. f3 {[%clk 0:02:36.4]} 19...
Be7 {[%clk 0:02:23]} 20. b4 {[%clk 0:02:20.3]} 20... cxb4 {[%clk 0:02:20.4]} 21.
axb4 {[%clk 0:02:21.2]} 21... Nxb4 {[%clk 0:02:20.3]} 22. Qb3 {[%clk 0:02:18.4]}
22... a5 {[%clk 0:02:19.5]} 23. c5 {[%clk 0:02:14.4]} 23... Nf7 {[%clk
0:02:14.6]} 24. cxd6 {[%clk 0:01:55.5]} 24... Bxd6 {[%clk 0:02:13.1]} 25. Bxf7+
{[%clk 0:01:40.5]} 25... Rxf7 {[%clk 0:02:12.4]} 26. Nb5 {[%clk 0:01:36.9]}
26... Bxe4 {[%clk 0:01:54.8]} 27. Nxd6 {[%clk 0:01:27.9]} 27... Bxd5 {[%clk
0:01:54.3]} 28. Nxf7 {[%clk 0:01:26.6]} 28... Bxf7 {[%clk 0:01:49.4]} 29. Qc3
{[%clk 0:01:18]} 29... Qd4+ {[%clk 0:01:48]} 30. Qxd4 {[%clk 0:01:17]} 30...
exd4 {[%clk 0:01:48.9]} 31. Rfd1 {[%clk 0:01:17.2]} 31... Nc6 {[%clk 0:01:35.5]}
32. Bf2 {[%clk 0:01:09.1]} 32... Rd8 {[%clk 0:01:32.5]} 33. Rab1 {[%clk
0:01:09.6]} 33... Rd7 {[%clk 0:01:29.1]} 34. Rb5 {[%clk 0:01:09.2]} 34... h6
{[%clk 0:01:24.8]} 35. Rdb1 {[%clk 0:01:05.8]} 35... d3 {[%clk 0:00:52.4]} 36.
Rxb7 {[%clk 0:01:04.1]} 36... Rd6 {[%clk 0:00:52.2]} 37. Be3 {[%clk 0:00:57.9]}
37... a4 {[%clk 0:00:49.9]} 38. R7b6 {[%clk 0:00:54.5]} 38... Bb3 {[%clk
0:00:42.8]} 39. Rc1 {[%clk 0:00:42.5]} 39... Bd5 {[%clk 0:00:24.9]} 40. Ra6
{[%clk 0:00:40.6]} 40... Re6 {[%clk 0:00:20.9]} 41. Kf2 {[%clk 0:00:39.4]} 41...
Nb4 {[%clk 0:00:16.2]} 42. Rxe6 {[%clk 0:00:30.1]} 42... Bxe6 {[%clk 0:00:15.7]}
43. Rc7 {[%clk 0:00:24.7]} 43... a3 {[%clk 0:00:14.3]} 44. Ra7 {[%clk
0:00:24.4]} 44... a2 {[%clk 0:00:14.3]} 45. Bd2 {[%clk 0:00:20.6]} 45... Nc2
{[%clk 0:00:14.4]} 46. Bc3 {[%clk 0:00:21.1]} 46... Bc4 {[%clk 0:00:13.9]} 47.
Ra8+ {[%clk 0:00:10.2]} 47... Kf7 {[%clk 0:00:13.2]} 48. Ra7+ {[%clk 0:00:11.1]}
48... Ke6 {[%clk 0:00:13.5]} 49. g4 {[%clk 0:00:06.2]} 49... a1=Q {[%clk
0:00:13.3]} 50. Bxa1 {[%clk 0:00:05.4]} 50... d2 {[%clk 0:00:13.3]} 51. Re7+
{[%clk 0:00:02.6]} 51... Kxe7 {[%clk 0:00:12.8]} 0-1

[Event "*** Titled Tuesday Blitz"]
[Site "Chess.com"]
[Date "2020.11.03"]
[Round "4"]
[White "chessmadara"]
[Black "Bacyanide"]
[Result "1/2-1/2"]
[WhiteElo "2216"]
[BlackElo "2410"]
[TimeControl "180+1"]
[EndTime "10:42:39 PST"]
[Termination "Game drawn by repetition"]

1. e4 {[%clk 0:03:00.9]} 1... e5 {[%clk 0:02:58.4]} 2. Nf3 {[%clk 0:02:59.9]}
2... Nc6 {[%clk 0:02:56.7]} 3. d4 {[%clk 0:02:58.6]} 3... exd4 {[%clk
0:02:54.6]} 4. Nxd4 {[%clk 0:02:59.5]} 4... Nf6 {[%clk 0:02:52.3]} 5. Nxc6
{[%clk 0:02:59.3]} 5... bxc6 {[%clk 0:02:53.2]} 6. e5 {[%clk 0:02:59.4]} 6...
Qe7 {[%clk 0:02:53.4]} 7. Qe2 {[%clk 0:02:59.2]} 7... Nd5 {[%clk 0:02:52.7]} 8.
h4 {[%clk 0:02:59.2]} 8... Qe6 {[%clk 0:02:41.5]} 9. g3 {[%clk 0:02:55.8]} 9...
Bc5 {[%clk 0:02:34.9]} 10. Bh3 {[%clk 0:02:48.2]} 10... Qe7 {[%clk 0:02:28.5]}
11. Bg5 {[%clk 0:02:41.8]} 11... f6 {[%clk 0:02:21.3]} 12. exf6 {[%clk
0:02:41.7]} 12... Qxe2+ {[%clk 0:02:19.9]} 13. Kxe2 {[%clk 0:02:42.6]} 13...
gxf6 {[%clk 0:02:19.8]} 14. Bd2 {[%clk 0:02:38.5]} 14... Ba6+ {[%clk 0:02:18.3]}
15. Kf3 {[%clk 0:02:34.7]} 15... O-O-O {[%clk 0:02:16.8]} 16. Re1 {[%clk
0:02:28.1]} 16... Rde8 {[%clk 0:02:07.7]} 17. Nc3 {[%clk 0:02:24.8]} 17... Bb7
{[%clk 0:01:57.1]} 18. Kg2 {[%clk 0:02:17]} 18... Bd4 {[%clk 0:01:51.4]} 19.
Rad1 {[%clk 0:01:50]} 19... Nxc3 {[%clk 0:01:46.5]} 20. Bxc3 {[%clk 0:01:49.5]}
20... c5+ {[%clk 0:01:47.2]} 21. Kg1 {[%clk 0:01:40.5]} 21... Rxe1+ {[%clk
0:01:46.2]} 22. Bxe1 {[%clk 0:01:37.7]} 22... Bc6 {[%clk 0:01:41.7]} 23. c3
{[%clk 0:01:37.2]} 23... Be5 {[%clk 0:01:41.2]} 24. Bd2 {[%clk 0:01:36.3]} 24...
Bd6 {[%clk 0:01:19.5]} 25. Be3 {[%clk 0:01:35.5]} 25... Re8 {[%clk 0:01:16.9]}
26. Bf5 {[%clk 0:01:15.8]} 26... Re7 {[%clk 0:01:16.5]} 27. Kh2 {[%clk
0:01:12.6]} 27... Bf3 {[%clk 0:01:16]} 28. Rd2 {[%clk 0:01:09.2]} 28... Kb7
{[%clk 0:01:15.3]} 29. Bh3 {[%clk 0:00:55.5]} 29... h5 {[%clk 0:01:14.5]} 30.
Bg2 {[%clk 0:00:55.2]} 30... Bxg2 {[%clk 0:01:14]} 31. Kxg2 {[%clk 0:00:55.9]}
31... Kc6 {[%clk 0:01:12.8]} 32. Kf3 {[%clk 0:00:53.2]} 32... f5 {[%clk
0:01:09.2]} 33. Bf4 {[%clk 0:00:53.2]} 33... Re4 {[%clk 0:01:08.9]} 34. Bxd6
{[%clk 0:00:31.9]} 34... cxd6 {[%clk 0:01:08.4]} 35. Re2 {[%clk 0:00:32.1]}
35... Ra4 {[%clk 0:01:06.7]} 36. a3 {[%clk 0:00:31.8]} 36... d5 {[%clk
0:00:51.7]} 37. Re7 {[%clk 0:00:28.2]} 37... d4 {[%clk 0:00:50.6]} 38. cxd4
{[%clk 0:00:25.5]} 38... Rxd4 {[%clk 0:00:49.7]} 39. Ke3 {[%clk 0:00:21.8]}
39... Rd1 {[%clk 0:00:44.3]} 40. Rh7 {[%clk 0:00:20.8]} 40... Rb1 {[%clk
0:00:41.5]} 41. Rxh5 {[%clk 0:00:20.7]} 41... Rxb2 {[%clk 0:00:40.9]} 42. Rxf5
{[%clk 0:00:21.1]} 42... d5 {[%clk 0:00:41.1]} 43. h5 {[%clk 0:00:20.3]} 43...
d4+ {[%clk 0:00:40.6]} 44. Kd3 {[%clk 0:00:20.4]} 44... Rb3+ {[%clk 0:00:40.3]}
45. Kd2 {[%clk 0:00:19]} 45... c4 {[%clk 0:00:40.1]} 46. h6 {[%clk 0:00:19.1]}
46... Rb2+ {[%clk 0:00:39]} 47. Kc1 {[%clk 0:00:18.2]} 47... c3 {[%clk
0:00:28.8]} 48. h7 {[%clk 0:00:18.1]} 48... Rb8 {[%clk 0:00:28.6]} 49. Rh5
{[%clk 0:00:18.1]} 49... Rh8 {[%clk 0:00:27.6]} 50. Kc2 {[%clk 0:00:18.4]} 50...
Kd6 {[%clk 0:00:24.3]} 51. Kd3 {[%clk 0:00:18.2]} 51... Ke6 {[%clk 0:00:22.9]}
52. g4 {[%clk 0:00:18.5]} 52... Kf6 {[%clk 0:00:22.5]} 53. f4 {[%clk 0:00:18.6]}
53... Kg6 {[%clk 0:00:22.2]} 54. f5+ {[%clk 0:00:18.6]} 54... Kg7 {[%clk
0:00:21.6]} 55. g5 {[%clk 0:00:16]} 55... Rxh7 {[%clk 0:00:21.8]} 56. Rxh7+
{[%clk 0:00:15.9]} 56... Kxh7 {[%clk 0:00:22.7]} 57. g6+ {[%clk 0:00:16.1]}
57... Kg7 {[%clk 0:00:23]} 58. Kc2 {[%clk 0:00:15.5]} 58... Kf6 {[%clk
0:00:23.2]} 59. Kd3 {[%clk 0:00:15.5]} 59... a5 {[%clk 0:00:23.5]} 60. a4 {[%clk
0:00:15.2]} 60... Kg7 {[%clk 0:00:23.8]} 61. Kc2 {[%clk 0:00:15.2]} 61... Kf6
{[%clk 0:00:24.3]} 62. Kd3 {[%clk 0:00:15.4]} 62... Kg7 {[%clk 0:00:24.7]} 63.
Kc2 {[%clk 0:00:15.8]} 63... Kf6 {[%clk 0:00:24.6]} 64. Kd3 {[%clk 0:00:16.1]}
1/2-1/2